Cogmind - Beta 15 @@@ ROGUE MODE // 2025.07.18 @ 13:45:33 Player: beans Result: Destroyed by G-47 Trooper with Particle Gun Performance ------------- Evolutions (2) 1000 Regions Visited (7) 1400 Robots Destroyed (91) 455 Value Destroyed (2019) 2019 Prototype IDs (24) 480 Alien Tech Used (0) 0 Bonus (430) 430 TOTAL SCORE: 5784 Bonus ------- High Alert Combat Kills 105 Follower Combat Kills 25 Aligned with FarCom 300 Cogmind --------- Core Integrity 0/550 Matter 39/300 Energy 91/100 System Corruption 0% Temperature Cool (9) Movement Core (300) Ox5 Location -8/Materials Parts ------- > --- POWER (2) -------- (None) > --- PROPULSION (3) --- (None) > --- UTILITY (4) ------ Advanced Targeting Computer Advanced Targeting Computer Advanced Targeting Computer Advanced Targeting Computer > --- WEAPON (2) ------- YOLO Cannon > --- INVENTORY (5) ---- (None) Peak State ------------ > --- POWER ------------ Ion Engine > --- PROPULSION ------- Light Treads Light Treads > --- UTILITY ---------- Advanced Targeting Computer Advanced Targeting Computer Advanced Targeting Computer Advanced Targeting Computer > --- WEAPON ----------- YOLO Cannon > --- INVENTORY -------- Flak Cannon Flak Cannon Rocket Launcher Rocket Launcher [Rating: 36] Favorites ----------- Power Ion Engine Engine Ion Engine Power Core Light Nuclear Core Propulsion Light Treads Treads Light Treads Utility Advanced Targeting Computer Device Improved Terrain Scanner Processor Advanced Targeting Computer Weapon Flak Cannon Energy Cannon YOLO Cannon Ballistic Gun Assault Rifle Ballistic Cannon Flak Cannon Launcher Rocket Launcher Build | -11 -10 -10 -9 -9 -9 -8 -8 ------- Run | Yrd Mat Min Mat Min Exi Min Mat Slots Evolved 4 | . . . 2 . . . 2 Power 1 | . . . . . . . 1 Propulsion 1 | . . . . . . . 1 Utility 2 | . . . 2 . . . . Weapon . | . . . . . . . . Parts Attached 24 | 6 1 3 9 . 1 . 4 Power 4 | 1 1 . 1 . . . 1 Engine 2 | 1 . . 1 . . . . Core 2 | . 1 . . . . . 1 Reactor . | . . . . . . . . Propulsion 4 | 2 . . 2 . . . . Treads 4 | 2 . . 2 . . . . Leg . | . . . . . . . . Wheel . | . . . . . . . . Hover . | . . . . . . . . Flight . | . . . . . . . . Utility 6 | 1 . 1 4 . . . . Device 1 | 1 . . . . . . . Storage . | . . . . . . . . Processor 5 | . . 1 4 . . . . Hackware . | . . . . . . . . Protection . | . . . . . . . . Artifact . | . . . . . . . . Weapon 10 | 2 . 2 2 . 1 . 3 Energy Gun . | . . . . . . . . Energy Cannon 1 | . . . . . 1 . . Ballistic Gun 3 | 2 . 1 . . . . . Ballistic Cannon 4 | . . . 2 . . . 2 Launcher 2 | . . 1 . . . . 1 Special Weapon . | . . . . . . . . Impact Weapon . | . . . . . . . . Slashing Weapon . | . . . . . . . . Piercing Weapon . | . . . . . . . . Special Melee Weapon . | . . . . . . . . Unidentified Prototypes 1 | . . . 1 . . . . Parts Lost 14 | . . 6 . . . . 8 Power 3 | . . 1 . . . . 2 Propulsion 4 | . . 2 . . . . 2 Utility 1 | . . 1 . . . . . Weapon 6 | . . 2 . . . . 4 Highest Loss Streak 6 | . . 3 . . . . 6 To Critical Strikes 1 | . . . . . . . 1 Average Backups 4 | . . 2 4 4 4 5 4 Power . | . . 1 . . . . . Propulsion . | . . . . . . . . Utility . | . . . . . . . . Weapon 4 | . . 1 3 4 4 5 4 Tool/Special . | . . . . . . . . Unused Backups 1 | . . . . . 1 . . Power . | . . . . . . . . Propulsion . | . . . . . . . . Utility 1 | . . . . . 1 . . Weapon . | . . . . . . . . Tool/Special . | . . . . . . . . Average Slot Usage (%) 86 | . 85 72 76 100 91 88 63 Engine 9 | . 11 . 6 11 11 11 4 Treads 19 | . 28 18 9 22 22 22 11 Device 1 | . 14 14 . . . . . Processor 39 | . . 2 39 44 44 44 36 Energy Cannon 6 | . . . . . 7 11 5 Ballistic Gun 2 | . 28 25 . . . . . Ballistic Cannon 7 | . . . 18 22 6 . 4 Peak Build Rating 36 | 8 10 11 22 22 36 36 36 Average Rating 27 | 4 8 8 18 21 31 36 29 On Entrance 16 | . 8 10 2 21 22 36 36 Naked Turns . | . . . . . . . . Heaviest Build 23 | 9 9 12 17 17 23 23 23 Greatest Support 40 | 40 40 40 40 40 40 40 40 Greatest Overweight (x) 5 | . . 1 5 . . . 5 Average Overweight (x) . | . . . 1 . . . . Largest Inventory Capacity 5 | 5 5 5 5 5 5 5 5 Average Capacity 5 | 5 5 5 5 5 5 5 5 Most Carried 5 | 2 1 4 5 5 5 5 5 Average Carried 4 | . . 2 4 4 4 5 4 Final Capacity 5 | 5 5 5 5 5 5 5 5 Final Carried 5 | . 1 3 4 5 5 5 . Class Distribution -------------------- 100% | Mutant Dominant Class ---------------- Mutant | -10/Materials Mutant | -10/Mines Mutant | -9/Materials Mutant | -9/Mines Mutant | -9/Exiles Mutant | -8/Mines Mutant | -8/Materials Resources | -11 -10 -10 -9 -9 -9 -8 -8 ----------- Run | Yrd Mat Min Mat Min Exi Min Mat Matter Collected 1153 | 285 . 169 453 192 . 10 44 Remotely . | . . . . . . . . Salvage Created 1795 | 40 96 66 403 317 . 174 699 Parts 142 | 6 5 6 40 25 . 10 50 Haulers Intercepted 2 | . . . 2 . . . . Recyclers Shooed 3 | 1 . 1 . 1 . . . Parts Field Recycled . | . . . . . . . . Retrieved Matter . | . . . . . . . . Parts Self-Destructed . | . . . . . . . . Prevented . | . . . . . . . . Kills | -11 -10 -10 -9 -9 -9 -8 -8 ------- Run | Yrd Mat Min Mat Min Exi Min Mat Combat Hostiles Destroyed 50 | . 2 5 11 5 . 5 22 Guns 6 | . 2 4 . . . . . Cannons 32 | . . . 9 5 . 3 15 AOE 9 | . . 1 2 . . 1 5 Classes Destroyed 16 | 1 1 2 6 2 . 1 3 Worker 9 | . . . 5 1 . 3 . Builder 8 | . . . 2 1 . . 5 Tunneler 9 | 2 . 1 . 3 . 2 1 Hauler 2 | . . . 2 . . . . Recycler 5 | . . . . 3 . 1 1 Mechanic 1 | . . . . . . . 1 Operator 3 | . . . 1 . . . 2 Watcher 4 | . . . 2 . . . 2 Swarmer 18 | . . 3 4 . . 4 7 Grunt 20 | . 2 . 4 4 . . 10 Brawler 2 | . . . . . . . 2 Duelist 1 | . . . . 1 . . . Protector 1 | . . . . . . . 1 Sentry 5 | . . . 3 . . . 2 Demolisher 2 | . . 2 . . . . . Hunter 1 | . . . . . . 1 . Best Kill Streak 16 | 2 2 3 10 3 . 5 16 Combat Bots Only 13 | . 2 3 7 3 . 4 13 Max Kills in Single Turn 3 | 1 1 1 2 1 . 2 3 Gunslinging . | . . . . . . . . Exploded 2 | . . 1 1 . . 1 2 Melee . | . . . . . . . . Uniques/NPCs Destroyed . | . . . . . . . . Combat | -11 -10 -10 -9 -9 -9 -8 -8 -------- Run | Yrd Mat Min Mat Min Exi Min Mat Hostile Shots Fired 235 | . 5 39 42 10 . 15 124 Missed 68 | . 1 11 12 1 . 7 36 Hits 167 | . 4 28 30 9 . 8 88 Melee 3 | . . . . . . . 3 Projectile 164 | . 4 28 30 9 . 8 85 AOE 13 | . . 13 . . . . . Critical Strikes 5 | . . 1 2 . . . 2 Damage Taken 2551 | . 54 601 345 128 . 76 1347 Core 881 | . 12 128 102 75 . 9 555 Absorbed by Shields . | . . . . . . . . Core Remaining (%) 65 | 100 . 44 . . . 53 . Volleys Fired 152 | 12 5 23 29 16 . 29 38 Largest 2 | 2 2 2 2 2 . 1 2 Hottest 100 | 40 40 40 74 74 . 100 100 Shots Fired 245 | 24 10 42 53 32 . 29 55 Gun 73 | 24 10 39 . . . . . Cannon 160 | . . . 48 32 . 29 51 Launcher 12 | . . 3 5 . . . 4 Special . | . . . . . . . . Kinetic 189 | 24 10 39 48 32 . . 36 Thermal 44 | . . . . . . 29 15 Explosive 12 | . . 3 5 . . . 4 Electromagnetic . | . . . . . . . . Robot Hit Streak 18 | 4 7 4 12 18 . 8 16 Robot Miss Streak 6 | 3 1 3 6 2 . . 5 Penetration Max . | . . . . . . . . Secondary Targets . | . . . . . . . . Shots Hit Robots 162 | 15 8 23 39 27 . 8 42 Core Hits 190 | 4 5 13 52 38 . 6 72 Critical Kills 4 | . . . . . . 2 2 Critical Parts Destroyed . | . . . . . . . . Critical Strikes 4 | . . . . . . 2 2 Meltdown 4 | . . . . . . 2 2 Melee Attacks . | . . . . . . . . Impact . | . . . . . . . . Slashing . | . . . . . . . . Piercing . | . . . . . . . . Sneak Attacks . | . . . . . . . . Combat Hostiles . | . . . . . . . . Follow-up Attacks . | . . . . . . . . Damage Inflicted 6735 | 171 88 261 955 604 . 1413 3243 Guns 466 | 171 88 207 . . . . . Cannons 4049 | . . . 733 604 . 949 1763 Explosions 2220 | . . 54 222 . . 464 1480 Melee . | . . . . . . . . Ramming . | . . . . . . . . Kinetic 2628 | 171 88 207 733 604 . . 825 Thermal 3376 | . . . . . . 1413 1963 Explosive 731 | . . 54 222 . . . 455 Electromagnetic . | . . . . . . . . Impact . | . . . . . . . . Slashing . | . . . . . . . . Piercing . | . . . . . . . . Highest Corruption . | . . . . . . . . Average Corruption . | . . . . . . . . Corruption Purged . | . . . . . . . . Corruption Blocked . | . . . . . . . . Overload Shots . | . . . . . . . . Overflow Damage 878 | . . . 1 . . 477 400 Projectiles 751 | . . . 1 . . 436 314 Explosions 127 | . . . . . . 41 86 Melee . | . . . . . . . . Knockbacks 40 | . . . 8 18 . . 14 Impact . | . . . . . . . . Kinetic 34 | . . . 6 18 . . 10 Secondary 6 | . . . 2 . . . 4 Self-Inflicted Damage 31 | . . . . . . . 31 Shots 2 | . . . . . . . 2 Rammed . | . . . . . . . . Targets Rammed . | . . . . . . . . Kicked . | . . . . . . . . Crushed . | . . . . . . . . Highest Temperature 97 | . 9 8 97 69 . 32 43 Average Temperature 13 | . 7 3 28 12 . 10 13 Received Heat Transfer 813 | . 30 39 144 69 . . 531 Siege Activations . | . . . . . . . . Martial Activations . | . . . . . . . . Shielding Activations . | . . . . . . . . Robots Disrupted . | . . . . . . . . Combat Hostiles . | . . . . . . . . Robots Corrupted . | . . . . . . . . Combat Hostiles . | . . . . . . . . Parts Fried . | . . . . . . . . Impact Corruptions . | . . . . . . . . Robots Melted 4 | . . . . . . 2 2 Combat Hostiles 3 | . . . . . . 1 2 Parts Melted 8 | . . . . . . 5 3 Heat Transferred 2820 | . . . . . . 1120 1700 Parts Sabotaged . | . . . . . . . . Parts Stolen . | . . . . . . . . Parts Stripped . | . . . . . . . . Power Chain Reactions . | . . . . . . . . Alert | -11 -10 -10 -9 -9 -9 -8 -8 ------- Run | Yrd Mat Min Mat Min Exi Min Mat Maximum Alert Level 2 | . . . 1 . . . 2 Low Security (%) 95 | 100 100 100 98 100 . 100 47 Level 1 . | . . . 1 . . . 4 Level 2 4 | . . . . . . . 47 Level 3 . | . . . . . . . . Level 4 . | . . . . . . . . Level 5 . | . . . . . . . . High Security . | . . . . . . . . Max Security . | . . . . . . . . Peak Influence 651 | 10 50 70 205 137 . 149 651 Initial 67 | . . 15 . 67 . . 1 Average 79 | 1 14 28 135 39 . 53 305 Influence Increases 2028 | 10 50 126 372 187 . 442 841 Destroy 0b10 Robot/C 1000 | . 40 100 220 120 . 100 420 Destroy 0b10 Robot/NC 215 | 10 . 5 60 40 . 35 65 Destroy Leader 202 | . 10 20 58 20 . 20 74 Allied During Kill 7 | . . . . 7 . . . Disable Machine 75 | . . . . . . 60 15 Anti-Garrison Action 150 | . . . . . . . 150 Destroy Structure 379 | . . 1 34 . . 227 117 Influence Decreases 1387 | 10 10 166 198 344 17 437 205 Entered New Map 153 | . . 25 . 107 17 . 4 Time Decay 1093 | 10 10 100 198 217 . 437 121 Lost Part 121 | . . 41 . . . . 80 Lost Ally 20 | . . . . 20 . . . Squads Dispatched 3 | . . . . . . . 3 Investigation . | . . . . . . . . Extermination . | . . . . . . . . Reinforcement 1 | . . . . . . . 1 Assault 2 | . . . . . . . 2 Garrison . | . . . . . . . . Intercept . | . . . . . . . . Searches Triggered . | . . . . . . . . Construction Impeded 1 | . . . . . . . 1 Haulers Reinforced . | . . . . . . . . Active Scanning Responses . | . . . . . . . . Cargo Convoy Interrupts . | . . . . . . . . Stealth | -11 -10 -10 -9 -9 -9 -8 -8 --------- Run | Yrd Mat Min Mat Min Exi Min Mat Distress Signals 5 | . . . 1 . . . 4 Communications Jammed . | . . . . . . . . Distress Signals . | . . . . . . . . Times Spotted 68 | . 2 7 17 5 . 5 32 Peak Tracking Total 10 | . 2 3 5 3 . 4 10 Tactical Retreats . | . . . . . . . . Traps | -11 -10 -10 -9 -9 -9 -8 -8 ------- Run | Yrd Mat Min Mat Min Exi Min Mat Traps Triggered . | . . . . . . . . Indirectly . | . . . . . . . . Trap Hack Attempts . | . . . . . . . . Triggered . | . . . . . . . . Disarmed . | . . . . . . . . Reprogrammed . | . . . . . . . . Reused . | . . . . . . . . Traps Extracted . | . . . . . . . . Installed . | . . . . . . . . Triggered . | . . . . . . . . Machines | -11 -10 -10 -9 -9 -9 -8 -8 ---------- Run | Yrd Mat Min Mat Min Exi Min Mat Machines Disabled 6 | . . . . . . 4 2 Max in Single Turn 1 | . . . . . . 1 1 Garrison Access 1 | . . . . . . . 1 Machines Repaired . | . . . . . . . . Machines Dismantled . | . . . . . . . . Machines Sabotaged . | . . . . . . . . Overloaded Fab Kills . | . . . . . . . . Hacking | -11 -10 -10 -9 -9 -9 -8 -8 --------- Run | Yrd Mat Min Mat Min Exi Min Mat Machines Accessed 2 | . . . 1 . 1 . . Terminals 1 | . . . 1 . . . . Fabricators . | . . . . . . . . Repair Stations . | . . . . . . . . Recycling Units . | . . . . . . . . Scanalyzers . | . . . . . . . . Garrison Access . | . . . . . . . . Total Hacks 3 | . . . 2 . 1 . . Successful 2 | . . . 1 . 1 . . Failed 1 | . . . 1 . . . . Catastrophic . | . . . . . . . . Database Lockouts . | . . . . . . . . Manual 1 | . . . . . 1 . . Terminals 2 | . . . 2 . . . . Fabricators . | . . . . . . . . Repair Stations . | . . . . . . . . Recycling Units . | . . . . . . . . Scanalyzers . | . . . . . . . . Garrison Access . | . . . . . . . . Terminal Hacks 2 | . . . 1 . 1 . . Record 1 | . . . 1 . . . . Proto ID Catalog 1 | . . . . . 1 . . Fabricator Hacks . | . . . . . . . . Repair Station Hacks . | . . . . . . . . Recycling Unit Hacks . | . . . . . . . . Scanalyzer . | . . . . . . . . Garrison Access Hacks . | . . . . . . . . Unauthorized Hacks . | . . . . . . . . Terminals . | . . . . . . . . Fabricators . | . . . . . . . . Repair Stations . | . . . . . . . . Recycling Units . | . . . . . . . . Scanalyzers . | . . . . . . . . Garrison Access . | . . . . . . . . Data Cores Recovered 1 | . . . 1 . . . . Used . | . . . . . . . . Hacking Detections 1 | . . . 1 . . . . Full Trace Events . | . . . . . . . . Feedback Events . | . . . . . . . . Feedback Blocked . | . . . . . . . . Robot Schematics Acquired . | . . . . . . . . Robots Built . | . . . . . . . . Authchips . | . . . . . . . . Time . | . . . . . . . . Total Robot Build Rating . | . . . . . . . . Part Schematics Acquired . | . . . . . . . . Parts Built . | . . . . . . . . Authchips . | . . . . . . . . Time . | . . . . . . . . Total Part Build Rating . | . . . . . . . . Parts Repaired . | . . . . . . . . Time . | . . . . . . . . Parts Recycled . | . . . . . . . . Recycled Matter . | . . . . . . . . Retrieved Matter . | . . . . . . . . Retrieved Components . | . . . . . . . . Parts Scanalyzed . | . . . . . . . . Part Schematics Acquired . | . . . . . . . . Parts Damaged . | . . . . . . . . Bothacking | -11 -10 -10 -9 -9 -9 -8 -8 ------------ Run | Yrd Mat Min Mat Min Exi Min Mat Used RIF Installer . | . . . . . . . . Robots Hacked . | . . . . . . . . Non-combat . | . . . . . . . . Combat . | . . . . . . . . Robot Hacks Applied . | . . . . . . . . Relay Couplers Released 3 | . . . . . . . 3 Machine Destruction 3 | . . . . . . . 3 Fabnet Peak Effective % . | . . . . . . . . Robots Rewired . | . . . . . . . . Allies Hacked . | . . . . . . . . Hacks Repelled . | . . . . . . . . Allies | -11 -10 -10 -9 -9 -9 -8 -8 -------- Run | Yrd Mat Min Mat Min Exi Min Mat Total Allies 2 | . . . . 2 . . . Largest Group 2 | . . . . 2 1 . . Highest-Rated Group 46 | . . . . 46 31 . . Highest-Rated Ally 31 | . . . . 31 31 . . Total Orders . | . . . . . . . . Ally Attacks 3 | . . . . 3 . . . Total Damage 43 | . . . . 43 . . . Kills 1 | . . . . 1 . . . Allies Corrupted . | . . . . . . . . Allies Melted . | . . . . . . . . Intel | -11 -10 -10 -9 -9 -9 -8 -8 ------- Run | Yrd Mat Min Mat Min Exi Min Mat Active Infowar (turns) 308 | 17 52 239 . . . . . Terrain 308 | 17 52 239 . . . . . Robot Analysis Total . | . . . . . . . . Derelict Logs Recovered 3 | . . 1 . 2 . . . Drone Launches . | . . . . . . . . Drone Recoveries . | . . . . . . . . Exploration | -11 -10 -10 -9 -9 -9 -8 -8 ------------- Run | Yrd Mat Min Mat Min Exi Min Mat Turns Passed 3930 | 108 52 242 404 643 652 1535 294 Spaces Moved 1870 | 43 23 106 169 372 270 788 99 Core 148 | 5 . 37 81 . . . 25 Treads 1722 | 38 23 69 88 372 270 788 74 Legs . | . . . . . . . . Wheels . | . . . . . . . . Hover . | . . . . . . . . Flight . | . . . . . . . . Fastest Speed 50 | 50 160 50 50 160 160 160 50 Average Speed 159 | 147 160 137 171 160 160 160 152 Slowest Speed 300 | 160 160 160 300 160 160 160 300 Overloaded Moves . | . . . . . . . . Propulsion Burnouts . | . . . . . . . . Robots Hopped . | . . . . . . . . Potential Cave-ins 6 | . . . . . . 4 2 Cave-ins Triggered . | . . . . . . . . Exploration Rate (%) 40 | 6 7 43 15 79 61 98 13 Regions Visited 7 Branch Regions 4 Pre-discovered Areas 1 | . . 1 . . . . . Known Exits Taken . | . . . . . . . . Unknown Exits Taken 7 | 1 1 1 1 1 1 1 . Scrap Searched 3 | . . 1 . 1 . 1 . Spaces Dug 141 | . . . . . . 129 12 Terrain Destroyed 597 | . . 4 37 . . 401 155 Melee . | . . . . . . . . Projectile 23 | . . . . . . 19 4 AOE 574 | . . 4 37 . . 382 151 Terrain Rammed . | . . . . . . . . Walls Destroyed . | . . . . . . . . Machines Disabled . | . . . . . . . . Actions | -11 -10 -10 -9 -9 -9 -8 -8 --------- Run | Yrd Mat Min Mat Min Exi Min Mat Total 2501 | 66 29 163 229 388 493 975 158 Wait 420 | . . 29 12 . 212 159 8 Move 1863 | 42 22 105 168 371 269 787 99 Hop . | . . . . . . . . Pick Up 24 | 6 1 3 6 1 5 . 2 Fast Attach 5 | . . . 5 . . . . Attach 22 | 6 . 1 6 . 1 . 8 Detach 2 | . . . 1 . . . 1 Swap 3 | . 1 2 . . . . . Drop 10 | . . . 2 . 6 . 2 Fire 152 | 12 5 23 29 16 . 29 38 Melee . | . . . . . . . . Ram . | . . . . . . . . Kick . | . . . . . . . . Crush . | . . . . . . . . Escape Stasis . | . . . . . . . . Rewire . | . . . . . . . . Trap . | . . . . . . . . Miscellaneous . | . . . . . . . . Route ------- -11/Scrapyard -10/Materials -10/Mines -9/Materials -9/Mines (discovered 4 exits: [*Mat x2] / *Exi / [*Zio]) -9/Exiles -8/Mines (discovered 2 exits: [*Mat x2]) -8/Materials History --------- Turn | Location | Event 18 | -11/Scrapyard | Discovered new exit (range 16) 109 | -11/Scrapyard | Entered Materials 117 | -10/Materials | Discovered new exit (range 16) 161 | -10/Materials | Entered Mines 223 | -10/Mines | Received a Rocket Launcher from a helpful Derelict 265 | -10/Mines | Assembled infested the area 270 | -10/Mines | Assisted by a Guerilla fighting off Assembled 305 | -10/Mines | Build established: Mutant 329 | -10/Mines | Core integrity fell below 50% 351 | -10/Mines | Lost 3 parts (1p2n) 387 | -10/Mines | Learned location of Zion (-7) 387 | -10/Mines | Discovered new exit (range 6) 403 | -10/Mines | Entered Materials 403 | -9/Materials | Evolved 2 slots: Utility x2 434 | -9/Materials | Lost 3 parts (1u2w) 598 | -9/Materials | Destroyed 7 combat bots 783 | -9/Materials | Discovered new exit (range 12) 807 | -9/Materials | Entered Mines 943 | -9/Mines | Discovered new exit (range 4) 1185 | -9/Mines | Found a hidden stash of uninstalled traps 1387 | -9/Mines | Discovered new exit (range 10) 1389 | -9/Mines | A Derelict revealed a hidden shortcut to a safe place 1396 | -9/Mines | Learned 4 Materials zone layouts 1423 | -9/Mines | Found DCF Scrap (11 items) 1440 | -9/Mines | Deemed a non-threat by the Exiles lab entrance 1442 | -9/Mines | Discovered new exit (range 5) 1450 | -9/Mines | Entered Exiles 1450 | -9/Exiles | Accompanied by 1 ally 1480 | -9/Exiles | Led the pair of lost Derelicts to a safe place 1500 | -9/Exiles | Met 8R-AWN 1524 | -9/Exiles | Met EX-HEX 1570 | -9/Exiles | Met EX-BIN 1594 | -9/Exiles | Aligned with FarCom system 1596 | -9/Exiles | Given EX-Vault access code 1636 | -9/Exiles | Opened EX-Vault 1647 | -9/Exiles | Found Supersonic Drone Bay 1658 | -9/Exiles | Found YOLO Cannon 1703 | -9/Exiles | Warned to stay clear of 0b10 Research branches 1710 | -9/Exiles | Exiles lab attacked by MAIN.C 1821 | -9/Exiles | Discovered new exit (range 12) 2102 | -9/Exiles | Left Exiles lab with YOLO Cannon 2102 | -9/Exiles | Entered Mines 2252 | -8/Mines | Discovered new exit (range 11) 2868 | -8/Mines | Discovered new exit (range 8) 3637 | -8/Mines | Entered Materials 3637 | -8/Materials | Evolved 2 slots: Power x1, Propulsion x1 3887 | -8/Materials | Core integrity fell below 50% 3894 | -8/Materials | Destroyed 13 combat bots 3904 | -8/Materials | Core integrity fell below 20% 3931 | -8/Materials | Destroyed by G-47 Trooper with Particle Gun Last Messages --------------- U-05 Engineer builds a Wall. Lgt. Nuclear Core destroyed. Destroyed Katana. Destroyed Melee Analysis Suite. U-05 Engineer lays Concrete. Acquired 44 matter. U-05 Engineer builds a Wall. Rocket Launcher destroyed. U-05 Engineer lays Concrete. U-05 Engineer builds a Wall. G-47 Trooper destroyed. I-25 Savior destroyed. The unstable cave ceiling collapses. Rocket Launcher destroyed. U-05 Engineer builds a Door. G-50 Soldier suffers critical hit (Meltdown). U-05 Engineer builds a Wall. The unstable cave ceiling collapses. U-05 Engineer builds a Wall. I-25 Savior sends out distress signal. Map ----- +----------------------------------------------------+ | ?????????????????????????????# #?# " # #???? | | ?????????????????????????????# #?# # #???? | | ?????????????????????????????# #?# # #???? | | ???????????????????????????### #####+#### #???? | | ???????????????????????????# ### ####+####? | | ???????????????????????????# # #? | | ??????????????????????????? # T #? | | ???????????????????????????# # #? | | ???????????????????????????# ## # #? | | ???????????????????????????######## # #? | | ?????????????????????????########## ######### | | ?????????????????????????# # # # | | ?????????????????????????# """ # # # | | ?????????????????????????# """ # # # | | ?????????????????????????# """ # # """ # | | ?????????????????????????# + # """ # | | ?????????????????????????# # + """ # | | ???????? ? ????????????# # # # | | ???????# # ???????????# ## ## # | | ???????# # ???????????# ## ## # | | ???????#[%=# #????######?########### ## # | | ???????# [%#"###??# #???###?????#i##Y # | | ???????#" %#% #??# ! #####T####### ## ####### | | ???#???#%[*# ""#### + ![ ####?????? | | ???# ??#=%!# # # [ #????????? | | ??## #?#%!%# " # @ #????????? | | ??? ##%=*=! ! # #????????? | | ???? = !+% / #????????? | | ??????#"##!#[% % #! ##+########?? | | ??????# #%#% * ## ]] !# #?? | | ??????# # g ## ] # "Y" #?? | | #######"* = ## # """ #?? | | !==% ! = ! + #?? | | =%! l[ =% ##+#####+##+#???????????? | | * * ### ???????????????????????? | | ####### ] #??? ???????????????????????? | | ??????# ##???? ???????????????????????? | | ??????# ###????? ??????????????????????? | | ??????# #####???##??????????????????????? | | ??????# # ##??????????####????????????? | | ??????# " ##????????# ##???????????? | | ??????#! """#???##### ##??????????? | | ??????# #####""" " """#??????????? | | ???#######"" "#??????????? | | "#??????????? | | ???####### """ "#??????????? | | ?????# " ####""""" """##??????????? | | ?????# ### ##??## ##???????????? | | ?????# # #????# #????????????? | | ?????# #!!//[[#????# #????????????? | +----------------------------------------------------+ Best States ------------- Heat Dissipation 31 Energy Generation 14 Energy Capacity 250 Matter Stores 300 Matter Capacity 300 Sight Range 16 Terrain Scan Range 16 Terrain Scan Density 85 Evasion (%) 50 Targeting Accuracy 32 Recoil Reduction 2 Item Schematics ----------------- None Robot Schematics ------------------ None Fabricated ------------ Nothing Repaired ---------- Nothing Alien Tech Used ----------------- None Achievements -------------- None Challenges ------------ None Game ------ Seed SegregatorArmoredAutohacker Manual? 0 Play Time 00:21:28 Cumulative 60.0 hours Start 2025.07.18 @ 13:23:07 End 2025.07.18 @ 13:45:33 Sessions 1 Manual Loads 0 Difficulty Rogue Special Mode None Game No. 256 Rogue 256 Adventurer 0 Explorer 0 Win Type - Total 0 Types 0/0/0/0/0/0/0/0/0/0 Lore% 39 Gallery% 30 Achievement% 25 Wizard Run 0 Options --------- Layout 2 ASCII 0 Keyboard 0 Movement Mouse Keybinds 0 Fullscreen 1 Font 24/Terminus Map View 50x44 Zoom Use 0% Tactical HUD 0 Map Filters NONE Filters NONE Steam 1 RUN: 73c0b4c3-1198-4eca-807e-1b908cbf3872